[Event "Late-Titled-Tuesday-Blitz-September-12-2023"]
[Site "Chess.com"]
[Date "2023.09.12"]
[Round "8"]
[White "Maksimus1998"]
[Black "MarcoRiehle"]
[Result "1/2-1/2"]
[WhiteElo "2581"]
[BlackElo "2779"]
[TimeControl "180+1"]
[EndTime "15:24:35 PDT"]
[Termination "Game drawn - insufficient material"]

1. d4 {[%clk 0:02:55.2]} 1... d5 {[%clk 0:02:59.9]} 2. Nf3 {[%clk 0:02:54.8]}
2... e6 {[%clk 0:02:59.9]} 3. e3 {[%clk 0:02:55]} 3... Nf6 {[%clk 0:02:59.9]} 4.
Bd3 {[%clk 0:02:54.6]} 4... c5 {[%clk 0:02:59.9]} 5. b3 {[%clk 0:02:54.6]} 5...
Nbd7 {[%clk 0:02:59.6]} 6. O-O {[%clk 0:02:54.5]} 6... b6 {[%clk 0:02:58.1]} 7.
Bb2 {[%clk 0:02:54.9]} 7... Bb7 {[%clk 0:02:58.2]} 8. Nbd2 {[%clk 0:02:55.4]}
8... Be7 {[%clk 0:02:58.3]} 9. Ne5 {[%clk 0:02:55.7]} 9... Nxe5 {[%clk
0:02:58.3]} 10. dxe5 {[%clk 0:02:55.8]} 10... Nd7 {[%clk 0:02:58.6]} 11. f4
{[%clk 0:02:55.8]} 11... O-O {[%clk 0:02:58.3]} 12. c4 {[%clk 0:02:52.9]} 12...
f6 {[%clk 0:02:52.8]} 13. exf6 {[%clk 0:02:37.4]} 13... Bxf6 {[%clk 0:02:49.8]}
14. Qh5 {[%clk 0:02:33.5]} 14... h6 {[%clk 0:02:44]} 15. Bxf6 {[%clk 0:02:29.3]}
15... Qxf6 {[%clk 0:02:39.7]} 16. Rad1 {[%clk 0:02:28.5]} 16... Rad8 {[%clk
0:02:29.5]} 17. Nf3 {[%clk 0:02:25.7]} 17... Bc6 {[%clk 0:02:24]} 18. Ne5 {[%clk
0:02:22.1]} 18... Nxe5 {[%clk 0:02:23.6]} 19. fxe5 {[%clk 0:02:23]} 19... Qg5
{[%clk 0:02:23.5]} 20. Qxg5 {[%clk 0:02:12.7]} 20... hxg5 {[%clk 0:02:24.3]} 21.
Be2 {[%clk 0:02:10.6]} 21... Rxf1+ {[%clk 0:02:15.6]} 22. Kxf1 {[%clk
0:02:10.5]} 22... Kf7 {[%clk 0:02:09.9]} 23. Bf3 {[%clk 0:02:04.6]} 23... Ke7
{[%clk 0:02:09.5]} 24. Ke2 {[%clk 0:02:03.2]} 24... a6 {[%clk 0:01:58.8]} 25.
Kf2 {[%clk 0:01:49.8]} 25... b5 {[%clk 0:01:58.2]} 26. Kg3 {[%clk 0:01:49.5]}
26... Rd7 {[%clk 0:01:18.8]} 27. Rc1 {[%clk 0:01:35]} 27... Rc7 {[%clk
0:01:18.4]} 28. cxd5 {[%clk 0:01:30.3]} 28... Bxd5 {[%clk 0:01:19]} 29. Kg4
{[%clk 0:01:30.5]} 29... Bxf3+ {[%clk 0:01:17.1]} 30. gxf3 {[%clk 0:01:31.4]}
30... c4 {[%clk 0:01:18]} 31. Kxg5 {[%clk 0:01:29.3]} 31... Rc5 {[%clk
0:01:14.8]} 32. bxc4 {[%clk 0:01:25.8]} 32... Rxe5+ {[%clk 0:01:12.2]} 33. Kf4
{[%clk 0:01:25.6]} 33... Rc5 {[%clk 0:01:12.6]} 34. Ke4 {[%clk 0:01:21.6]} 34...
bxc4 {[%clk 0:01:09.8]} 35. Kd4 {[%clk 0:01:21.2]} 35... Ra5 {[%clk 0:01:05.1]}
36. Rc2 {[%clk 0:01:18.2]} 36... Ra4 {[%clk 0:01:05.5]} 37. h3 {[%clk
0:01:13.6]} 37... Kd6 {[%clk 0:01:04.6]} 38. Rxc4 {[%clk 0:01:11.2]} 38... Rxa2
{[%clk 0:01:04.6]} 39. Rc8 {[%clk 0:01:09.4]} 39... a5 {[%clk 0:00:59.6]} 40.
Rg8 {[%clk 0:01:06.4]} 40... Rg2 {[%clk 0:00:59.6]} 41. Ra8 {[%clk 0:01:05.8]}
41... Rg3 {[%clk 0:00:59.5]} 42. f4 {[%clk 0:01:03.6]} 42... Rxh3 {[%clk
0:00:58.8]} 43. Rxa5 {[%clk 0:01:02]} 43... Rg3 {[%clk 0:00:59.3]} 44. e4 {[%clk
0:00:56.6]} 44... Rb3 {[%clk 0:00:59.1]} 45. Ra7 {[%clk 0:00:48.4]} 45... Rb4+
{[%clk 0:00:53.4]} 46. Kd3 {[%clk 0:00:48.1]} 46... Rb3+ {[%clk 0:00:53.5]} 47.
Kc4 {[%clk 0:00:44.8]} 47... Rf3 {[%clk 0:00:53.6]} 48. Ra6+ {[%clk 0:00:19.1]}
48... Ke7 {[%clk 0:00:51.9]} 49. Kd4 {[%clk 0:00:19.6]} 49... Kf6 {[%clk
0:00:50.1]} 50. f5 {[%clk 0:00:18.7]} 50... Rf1 {[%clk 0:00:47]} 51. Rxe6+
{[%clk 0:00:17.9]} 51... Kf7 {[%clk 0:00:47.5]} 52. Ra6 {[%clk 0:00:16.7]} 52...
Rb1 {[%clk 0:00:47.5]} 53. Ke5 {[%clk 0:00:16.3]} 53... Rb5+ {[%clk 0:00:47.6]}
54. Kf4 {[%clk 0:00:16.8]} 54... Rb4 {[%clk 0:00:48.3]} 55. Re6 {[%clk
0:00:15.4]} 55... Ra4 {[%clk 0:00:48.3]} 56. Kg5 {[%clk 0:00:15.5]} 56... Rb4
{[%clk 0:00:48.6]} 57. e5 {[%clk 0:00:15.2]} 57... Rb1 {[%clk 0:00:48.6]} 58.
Rc6 {[%clk 0:00:13.1]} 58... Rg1+ {[%clk 0:00:48.6]} 59. Kf4 {[%clk 0:00:13.4]}
59... Rf1+ {[%clk 0:00:48.9]} 60. Ke4 {[%clk 0:00:13.9]} 60... Re1+ {[%clk
0:00:49.2]} 61. Kd5 {[%clk 0:00:14.1]} 61... Rd1+ {[%clk 0:00:49.5]} 62. Kc5
{[%clk 0:00:14.3]} 62... Rc1+ {[%clk 0:00:48.7]} 63. Kd6 {[%clk 0:00:14.4]}
63... Rd1+ {[%clk 0:00:48.6]} 64. Kc7 {[%clk 0:00:14.6]} 64... Rf1 {[%clk
0:00:48.4]} 65. Kd7 {[%clk 0:00:12.5]} 65... Rd1+ {[%clk 0:00:44.5]} 66. Rd6
{[%clk 0:00:12.7]} 66... Re1 {[%clk 0:00:40.4]} 67. e6+ {[%clk 0:00:11.3]} 67...
Kf6 {[%clk 0:00:40.1]} 68. e7+ {[%clk 0:00:10.7]} 68... Kf7 {[%clk 0:00:40.8]}
69. Re6 {[%clk 0:00:11]} 69... Rd1+ {[%clk 0:00:40.9]} 70. Kc6 {[%clk
0:00:10.8]} 70... Ke8 {[%clk 0:00:40.2]} 71. Kc5 {[%clk 0:00:07.5]} 71... Rd7
{[%clk 0:00:40.1]} 72. f6 {[%clk 0:00:05.1]} 72... gxf6 {[%clk 0:00:38.2]} 73.
Rxf6 {[%clk 0:00:06]} 73... Rxe7 {[%clk 0:00:38]} 74. Rd6 {[%clk 0:00:05.8]}
74... Rd7 {[%clk 0:00:38.1]} 75. Rxd7 {[%clk 0:00:05.8]} 75... Kxd7 {[%clk
0:00:37.9]} 1/2-1/2

[Event "Late-Titled-Tuesday-Blitz-September-12-2023"]
[Site "Chess.com"]
[Date "2023.09.12"]
[Round "8"]
[White "carloseduar100"]
[Black "Flaccidmoves"]
[Result "0-1"]
[WhiteElo "2288"]
[BlackElo "2449"]
[TimeControl "180+1"]
[EndTime "15:24:35 PDT"]
[Termination "Flaccidmoves won on time"]

1. e4 {[%clk 0:02:48]} 1... d6 {[%clk 0:02:58]} 2. Nf3 {[%clk 0:02:48.2]} 2...
Nf6 {[%clk 0:02:55.6]} 3. Nc3 {[%clk 0:02:49.1]} 3... g6 {[%clk 0:02:50.6]} 4.
Bc4 {[%clk 0:02:40.3]} 4... Bg7 {[%clk 0:02:48.9]} 5. O-O {[%clk 0:02:37]} 5...
O-O {[%clk 0:02:48.5]} 6. Re1 {[%clk 0:02:35]} 6... c5 {[%clk 0:02:47.7]} 7. Nd5
{[%clk 0:02:34.4]} 7... Nc6 {[%clk 0:02:45.2]} 8. c3 {[%clk 0:02:33.5]} 8... e6
{[%clk 0:02:41.4]} 9. Nxf6+ {[%clk 0:02:27.2]} 9... Bxf6 {[%clk 0:02:42.3]} 10.
d4 {[%clk 0:02:26.5]} 10... d5 {[%clk 0:02:41.9]} 11. exd5 {[%clk 0:02:23.8]}
11... exd5 {[%clk 0:02:41.2]} 12. Bb5 {[%clk 0:02:22.1]} 12... cxd4 {[%clk
0:02:39.3]} 13. Bxc6 {[%clk 0:02:21.8]} 13... bxc6 {[%clk 0:02:39.9]} 14. Nxd4
{[%clk 0:02:22.7]} 14... c5 {[%clk 0:02:37.7]} 15. Nf3 {[%clk 0:02:22.3]} 15...
Rb8 {[%clk 0:02:33.3]} 16. h3 {[%clk 0:02:22.4]} 16... Bf5 {[%clk 0:02:29.5]}
17. Qa4 {[%clk 0:02:19.3]} 17... Qb6 {[%clk 0:02:25.2]} 18. Bf4 {[%clk
0:02:11.2]} 18... Rbc8 {[%clk 0:02:17.6]} 19. Qb3 {[%clk 0:02:06.5]} 19... Rfe8
{[%clk 0:02:14.1]} 20. Qxb6 {[%clk 0:01:44.1]} 20... axb6 {[%clk 0:02:15]} 21.
a3 {[%clk 0:01:42.6]} 21... d4 {[%clk 0:02:00.5]} 22. cxd4 {[%clk 0:01:37.9]}
22... cxd4 {[%clk 0:02:01.4]} 23. Be5 {[%clk 0:01:31.7]} 23... Bxe5 {[%clk
0:01:59.1]} 24. Rxe5 {[%clk 0:01:31.7]} 24... Rxe5 {[%clk 0:01:53.7]} 25. Nxe5
{[%clk 0:01:32.6]} 25... Re8 {[%clk 0:01:36.9]} 26. f4 {[%clk 0:01:30.6]} 26...
f6 {[%clk 0:01:33.3]} 27. Nc6 {[%clk 0:01:30.5]} 27... d3 {[%clk 0:01:31.1]} 28.
Rd1 {[%clk 0:01:31.4]} 28... Re2 {[%clk 0:01:28.9]} 29. Nb4 {[%clk 0:01:31.1]}
29... Rxb2 {[%clk 0:01:13.8]} 30. Nxd3 {[%clk 0:01:29.9]} 30... Rb3 {[%clk
0:01:13.8]} 31. Nf2 {[%clk 0:01:22.4]} 31... Rxa3 {[%clk 0:01:12.2]} 32. g4
{[%clk 0:01:21.8]} 32... Bc2 {[%clk 0:01:04.7]} 33. Rd6 {[%clk 0:01:21]} 33...
b5 {[%clk 0:01:03.8]} 34. Rb6 {[%clk 0:01:03.3]} 34... Rb3 {[%clk 0:01:02.3]}
35. Rxf6 {[%clk 0:01:01.4]} 35... b4 {[%clk 0:01:00.7]} 36. Rb6 {[%clk
0:00:59.9]} 36... Rb1+ {[%clk 0:00:58.4]} 37. Kh2 {[%clk 0:00:59.9]} 37... b3
{[%clk 0:00:58.9]} 38. h4 {[%clk 0:00:56]} 38... b2 {[%clk 0:00:54.1]} 39. h5
{[%clk 0:00:47.4]} 39... gxh5 {[%clk 0:00:40.3]} 40. gxh5 {[%clk 0:00:48.2]}
40... Rf1 {[%clk 0:00:39.2]} 41. Rxb2 {[%clk 0:00:47.7]} 41... Rxf2+ {[%clk
0:00:38.6]} 42. Kg3 {[%clk 0:00:48.5]} 42... Rd2 {[%clk 0:00:37]} 43. Kh4 {[%clk
0:00:42]} 43... Re2 {[%clk 0:00:30.7]} 44. Kg5 {[%clk 0:00:33.4]} 44... Rg2+
{[%clk 0:00:27]} 45. Kf6 {[%clk 0:00:33.3]} 45... Kh8 {[%clk 0:00:14.3]} 46. f5
{[%clk 0:00:26.6]} 46... Be4 {[%clk 0:00:11.2]} 47. Rxg2 {[%clk 0:00:16.7]}
47... Bxg2 {[%clk 0:00:12.1]} 48. h6 {[%clk 0:00:16.4]} 48... Kg8 {[%clk
0:00:10.5]} 49. Ke7 {[%clk 0:00:16.4]} 49... Bd5 {[%clk 0:00:10.6]} 50. Kd6
{[%clk 0:00:14.8]} 50... Bf7 {[%clk 0:00:10]} 51. Ke7 {[%clk 0:00:13.9]} 51...
Bb3 {[%clk 0:00:09.7]} 52. Ke8 {[%clk 0:00:11.1]} 52... Bc2 {[%clk 0:00:08.4]}
53. f6 {[%clk 0:00:09.8]} 53... Bg6+ {[%clk 0:00:08.8]} 54. Ke7 {[%clk
0:00:09.8]} 54... Bf7 {[%clk 0:00:09.2]} 55. Kd6 {[%clk 0:00:09.8]} 55... Kf8
{[%clk 0:00:09.6]} 56. Ke5 {[%clk 0:00:04.4]} 56... Bg8 {[%clk 0:00:10.1]} 0-1

[Event "Late-Titled-Tuesday-Blitz-September-12-2023"]
[Site "Chess.com"]
[Date "2023.09.12"]
[Round "8"]
[White "stasOR4ik"]
[Black "The_Princess_Moon"]
[Result "0-1"]
[WhiteElo "2421"]
[BlackElo "2296"]
[TimeControl "180+1"]
[EndTime "15:24:38 PDT"]
[Termination "The_Princess_Moon won by resignation"]

1. e4 {[%clk 0:03:00.9]} 1... c5 {[%clk 0:03:00.9]} 2. c3 {[%clk 0:03:00.4]}
2... d5 {[%clk 0:02:58.9]} 3. exd5 {[%clk 0:02:59.6]} 3... Qxd5 {[%clk
0:02:59.8]} 4. d4 {[%clk 0:02:59.5]} 4... Nf6 {[%clk 0:02:59.2]} 5. Nf3 {[%clk
0:02:59.2]} 5... Bg4 {[%clk 0:02:58.5]} 6. Be2 {[%clk 0:02:58.2]} 6... e6 {[%clk
0:02:58.2]} 7. Bf4 {[%clk 0:02:39.9]} 7... Nbd7 {[%clk 0:02:52.9]} 8. Na3 {[%clk
0:02:32]} 8... a6 {[%clk 0:02:41.4]} 9. Nc2 {[%clk 0:02:19.8]} 9... cxd4 {[%clk
0:02:37.7]} 10. cxd4 {[%clk 0:02:06.9]} 10... Qe4 {[%clk 0:02:27.2]} 11. Be3
{[%clk 0:01:54.4]} 11... Rc8 {[%clk 0:02:19.3]} 12. Rc1 {[%clk 0:01:42.8]} 12...
Be7 {[%clk 0:02:17.1]} 13. O-O {[%clk 0:01:41.3]} 13... O-O {[%clk 0:02:11.3]}
14. Ng5 {[%clk 0:01:25.9]} 14... Bxe2 {[%clk 0:02:03.9]} 15. Qxe2 {[%clk
0:01:19.1]} 15... Qf5 {[%clk 0:02:00.3]} 16. Nf3 {[%clk 0:01:02.3]} 16... Nd5
{[%clk 0:01:57.1]} 17. Rfd1 {[%clk 0:00:59.2]} 17... Nxe3 {[%clk 0:01:53.9]} 18.
Nxe3 {[%clk 0:00:58.6]} 18... Qa5 {[%clk 0:01:48.6]} 19. b3 {[%clk 0:00:56.1]}
19... Nf6 {[%clk 0:01:47]} 20. Ne5 {[%clk 0:00:40.8]} 20... Ba3 {[%clk
0:01:31.8]} 21. Rxc8 {[%clk 0:00:38.1]} 21... Rxc8 {[%clk 0:01:30]} 22. N3c4
{[%clk 0:00:36.3]} 22... Qb4 {[%clk 0:01:25.7]} 23. g4 {[%clk 0:00:23.3]} 23...
b5 {[%clk 0:01:15.1]} 24. Nxa3 {[%clk 0:00:20]} 24... Qxa3 {[%clk 0:01:16]} 25.
g5 {[%clk 0:00:20.6]} 25... Nd5 {[%clk 0:01:12.5]} 26. Qf3 {[%clk 0:00:17.7]}
26... Qe7 {[%clk 0:01:09.2]} 27. h4 {[%clk 0:00:12.4]} 27... Rc3 {[%clk
0:01:07.6]} 28. Rd3 {[%clk 0:00:10.1]} 28... Rxd3 {[%clk 0:01:04]} 29. Qxd3
{[%clk 0:00:11]} 29... f6 {[%clk 0:00:57.6]} 30. Nf3 {[%clk 0:00:09.7]} 30...
Qc7 {[%clk 0:00:53.3]} 31. Qe4 {[%clk 0:00:08.2]} 31... Kf7 {[%clk 0:00:44.4]}
32. Qxh7 {[%clk 0:00:07.9]} 32... Qc1+ {[%clk 0:00:39]} 33. Kg2 {[%clk
0:00:08.3]} 33... Nf4+ {[%clk 0:00:36.4]} 34. Kh2 {[%clk 0:00:07.3]} 34... Qf1
{[%clk 0:00:32.2]} 35. g6+ {[%clk 0:00:06.4]} 35... Nxg6 {[%clk 0:00:21.2]} 36.
Kg3 {[%clk 0:00:06.7]} 36... Qd3 {[%clk 0:00:17.2]} 37. h5 {[%clk 0:00:05.2]}
37... Ne5 {[%clk 0:00:11.9]} 38. Qxd3 {[%clk 0:00:02.3]} 38... Nxd3 {[%clk
0:00:12.8]} 39. Nd2 {[%clk 0:00:01.4]} 39... Nc1 {[%clk 0:00:12.5]} 40. Kf3
{[%clk 0:00:02]} 40... Nxa2 {[%clk 0:00:12.5]} 41. Ke4 {[%clk 0:00:02.5]} 41...
Nc3+ {[%clk 0:00:12.9]} 42. Kd3 {[%clk 0:00:02.7]} 42... Nd5 {[%clk 0:00:13.3]}
43. f3 {[%clk 0:00:03.1]} 43... f5 {[%clk 0:00:13.6]} 44. Kc2 {[%clk 0:00:02.5]}
44... g6 {[%clk 0:00:14]} 45. hxg6+ {[%clk 0:00:02.1]} 45... Kxg6 {[%clk
0:00:14.9]} 46. Nf1 {[%clk 0:00:02.5]} 46... Kg5 {[%clk 0:00:15.3]} 47. Kd3
{[%clk 0:00:02.5]} 47... Kf4 {[%clk 0:00:15.7]} 48. Ke2 {[%clk 0:00:03.1]} 48...
Nc3+ {[%clk 0:00:15.7]} 49. Kf2 {[%clk 0:00:03.3]} 49... b4 {[%clk 0:00:16.1]}
50. Ne3 {[%clk 0:00:03.5]} 50... Nd5 {[%clk 0:00:15.3]} 51. Nc4 {[%clk
0:00:03.7]} 51... Nc3 {[%clk 0:00:13.8]} 52. Nd6 {[%clk 0:00:03.4]} 52... Nb5
{[%clk 0:00:12.1]} 53. Nxb5 {[%clk 0:00:02.9]} 53... axb5 {[%clk 0:00:13]} 54.
Ke2 {[%clk 0:00:03.3]} 54... Kg5 {[%clk 0:00:10.2]} 55. Ke3 {[%clk 0:00:03.7]}
55... Kg6 {[%clk 0:00:10.3]} 56. f4 {[%clk 0:00:03.5]} 56... Kf6 {[%clk
0:00:09.5]} 57. Kf3 {[%clk 0:00:03.7]} 57... Ke7 {[%clk 0:00:09.8]} 58. Ke3
{[%clk 0:00:03]} 58... Kd6 {[%clk 0:00:10.3]} 59. Kd2 {[%clk 0:00:03.2]} 59...
Kc6 {[%clk 0:00:10.1]} 60. Ke2 {[%clk 0:00:03.4]} 60... Kd5 {[%clk 0:00:10.8]}
61. Kd2 {[%clk 0:00:03.9]} 61... Ke4 {[%clk 0:00:11.7]} 62. d5 {[%clk
0:00:03.1]} 62... exd5 {[%clk 0:00:12.6]} 63. Ke2 {[%clk 0:00:03.5]} 63... d4
{[%clk 0:00:13.4]} 64. Kd2 {[%clk 0:00:03.9]} 64... d3 {[%clk 0:00:14.3]} 65.
Kc1 {[%clk 0:00:04.2]} 65... Kd4 {[%clk 0:00:15.2]} 66. Kd2 {[%clk 0:00:04.8]}
66... Ke4 {[%clk 0:00:15.4]} 67. Kd1 {[%clk 0:00:05.5]} 67... Kxf4 {[%clk
0:00:15.9]} 68. Kd2 {[%clk 0:00:06.4]} 68... Ke4 {[%clk 0:00:16.8]} 69. Kd1
{[%clk 0:00:06.8]} 69... f4 {[%clk 0:00:17.7]} 70. Kd2 {[%clk 0:00:07.6]} 70...
f3 {[%clk 0:00:18.6]} 71. Ke1 {[%clk 0:00:08.5]} 71... Ke3 {[%clk 0:00:18.7]}
72. Kd1 {[%clk 0:00:09.4]} 72... f2 {[%clk 0:00:19]} 73. Kc1 {[%clk 0:00:09.9]}
73... f1=Q+ {[%clk 0:00:18.8]} 74. Kb2 {[%clk 0:00:10.8]} 74... Qe2+ {[%clk
0:00:19.2]} 75. Ka1 {[%clk 0:00:11.6]} 75... Qd1+ {[%clk 0:00:19.6]} 76. Kb2
{[%clk 0:00:12.5]} 76... Qc2+ {[%clk 0:00:20]} 0-1

[Event "Late-Titled-Tuesday-Blitz-September-12-2023"]
[Site "Chess.com"]
[Date "2023.09.12"]
[Round "8"]
[White "santosalberto1987"]
[Black "KNVB"]
[Result "0-1"]
[WhiteElo "2536"]
[BlackElo "2759"]
[TimeControl "180+1"]
[EndTime "15:24:39 PDT"]
[Termination "KNVB won by resignation"]

1. e4 {[%clk 0:03:00.9]} 1... c5 {[%clk 0:02:55.4]} 2. Nf3 {[%clk 0:03:00.8]}
2... e6 {[%clk 0:02:54]} 3. g3 {[%clk 0:03:00.5]} 3... Nc6 {[%clk 0:02:52.6]} 4.
Bg2 {[%clk 0:03:00.5]} 4... a6 {[%clk 0:02:43.4]} 5. O-O {[%clk 0:02:59.6]} 5...
Qc7 {[%clk 0:02:40.9]} 6. c3 {[%clk 0:02:58.7]} 6... Nf6 {[%clk 0:02:40.5]} 7.
Re1 {[%clk 0:02:55]} 7... e5 {[%clk 0:02:41]} 8. d4 {[%clk 0:02:44.6]} 8... d6
{[%clk 0:02:41.9]} 9. dxe5 {[%clk 0:02:40]} 9... dxe5 {[%clk 0:02:42.1]} 10. Bg5
{[%clk 0:02:36.4]} 10... Be7 {[%clk 0:02:40.9]} 11. Bxf6 {[%clk 0:02:35.4]}
11... Bxf6 {[%clk 0:02:41.8]} 12. a4 {[%clk 0:02:21.9]} 12... Be6 {[%clk
0:02:40.6]} 13. Na3 {[%clk 0:02:21.8]} 13... c4 {[%clk 0:02:38.7]} 14. Nc2
{[%clk 0:02:20.5]} 14... Rd8 {[%clk 0:02:33]} 15. Qe2 {[%clk 0:02:20.5]} 15...
O-O {[%clk 0:02:31.8]} 16. Red1 {[%clk 0:02:18.5]} 16... g6 {[%clk 0:02:27]} 17.
Ne3 {[%clk 0:02:16.7]} 17... Ne7 {[%clk 0:02:27.6]} 18. Ne1 {[%clk 0:02:00]}
18... Qc5 {[%clk 0:02:17.6]} 19. N1c2 {[%clk 0:01:58]} 19... Bg5 {[%clk
0:02:07.2]} 20. h4 {[%clk 0:01:55]} 20... Bh6 {[%clk 0:02:05.7]} 21. h5 {[%clk
0:01:46.4]} 21... Kg7 {[%clk 0:02:05.5]} 22. Ng4 {[%clk 0:01:40.4]} 22... Bg5
{[%clk 0:02:02]} 23. Nge3 {[%clk 0:01:26.4]} 23... b6 {[%clk 0:01:14.1]} 24.
Rxd8 {[%clk 0:01:20]} 24... Rxd8 {[%clk 0:01:14.2]} 25. Rd1 {[%clk 0:01:20.4]}
25... Rxd1+ {[%clk 0:00:43.7]} 26. Qxd1 {[%clk 0:01:21.3]} 26... Qc6 {[%clk
0:00:44.2]} 27. Nb4 {[%clk 0:01:17.8]} 27... Qb7 {[%clk 0:00:44.8]} 28. Ned5
{[%clk 0:01:16.1]} 28... a5 {[%clk 0:00:45.2]} 29. Nxe7 {[%clk 0:01:14.3]} 29...
axb4 {[%clk 0:00:44.7]} 30. Nd5 {[%clk 0:01:11]} 30... b3 {[%clk 0:00:31]} 31.
hxg6 {[%clk 0:01:09.7]} 31... hxg6 {[%clk 0:00:31.9]} 32. f4 {[%clk 0:01:03.1]}
32... Be7 {[%clk 0:00:11.9]} 33. Nxe7 {[%clk 0:00:39.9]} 33... Qxe7 {[%clk
0:00:11.6]} 34. fxe5 {[%clk 0:00:40.5]} 34... Qc5+ {[%clk 0:00:08.6]} 35. Kh2
{[%clk 0:00:33]} 35... Qxe5 {[%clk 0:00:07.6]} 36. Qd2 {[%clk 0:00:21.3]} 36...
Qh5+ {[%clk 0:00:04.1]} 37. Kg1 {[%clk 0:00:21.4]} 37... Qe5 {[%clk 0:00:04.2]}
38. Kh2 {[%clk 0:00:21.6]} 38... Qa5 {[%clk 0:00:01.9]} 39. Qd4+ {[%clk
0:00:17.9]} 39... Kg8 {[%clk 0:00:02]} 40. Qd8+ {[%clk 0:00:17.1]} 40... Kh7
{[%clk 0:00:02.6]} 41. Qh4+ {[%clk 0:00:16.3]} 41... Kg7 {[%clk 0:00:03.2]} 42.
Qd8 {[%clk 0:00:16.3]} 42... Qxa4 {[%clk 0:00:03]} 43. Qxb6 {[%clk 0:00:16.4]}
43... Qa2 {[%clk 0:00:02.5]} 44. Qd4+ {[%clk 0:00:16.1]} 44... Kg8 {[%clk
0:00:02.9]} 45. Qd8+ {[%clk 0:00:15.6]} 45... Kh7 {[%clk 0:00:03.5]} 46. Qd2
{[%clk 0:00:15.5]} 46... Qb1 {[%clk 0:00:03.2]} 47. Bf3 {[%clk 0:00:13.9]} 47...
Qc2 {[%clk 0:00:03.2]} 48. Qe2 {[%clk 0:00:12.2]} 48... Qc1 {[%clk 0:00:03.4]}
49. Kg2 {[%clk 0:00:11.9]} 49... Kg7 {[%clk 0:00:03.7]} 50. Kf2 {[%clk
0:00:09.6]} 50... g5 {[%clk 0:00:02.7]} 51. Bg4 {[%clk 0:00:09.8]} 51... Bxg4
{[%clk 0:00:02.2]} 52. Qxg4 {[%clk 0:00:10.1]} 52... Qxb2+ {[%clk 0:00:02.8]}
53. Kg1 {[%clk 0:00:10]} 53... Qc1+ {[%clk 0:00:02.9]} 54. Kg2 {[%clk
0:00:10.3]} 54... b2 {[%clk 0:00:02.4]} 55. Qf5 {[%clk 0:00:10.5]} 55... Qd2+
{[%clk 0:00:01.9]} 56. Kh3 {[%clk 0:00:10.7]} 56... b1=Q {[%clk 0:00:02]} 57.
Qe5+ {[%clk 0:00:10.8]} 57... Kg8 {[%clk 0:00:01.5]} 58. Qe8+ {[%clk 0:00:10.3]}
58... Kg7 {[%clk 0:00:01.9]} 59. Qe5+ {[%clk 0:00:10.7]} 59... Kf8 {[%clk
0:00:02.4]} 60. Qh8+ {[%clk 0:00:08.5]} 60... Ke7 {[%clk 0:00:02.8]} 61. Qe5+
{[%clk 0:00:08.9]} 61... Kd7 {[%clk 0:00:02.3]} 62. Qf5+ {[%clk 0:00:09.2]}
62... Ke8 {[%clk 0:00:01.7]} 63. Qe5+ {[%clk 0:00:09.3]} 63... Kd8 {[%clk
0:00:02.1]} 64. Qf6+ {[%clk 0:00:09.3]} 64... Kc8 {[%clk 0:00:02.3]} 65. Qf5+
{[%clk 0:00:07.3]} 65... Qd7 {[%clk 0:00:03.2]} 0-1